fUSD/lending_fUSD_20250513
["ID","MTS","AMOUNT","RATE_DAILY","PERIOD"]
[360925888,1747151011301,-500.0,0.00010098,2]
[360925889,1747151011339,-500.0,0.00010098,2]
[360925890,1747151011377,-500.0,0.00010098,2]
[360925891,1747151011415,-500.0,0.00010098,2]
[360925892,1747151011452,-500.0,0.00010098,2]
[360925893,1747151011490,-500.0,0.00010098,2]
[360925894,1747151011530,-500.0,0.00010098,2]
[360925895,1747151011567,-500.0,0.00010098,2]
[360925896,1747151011605,-500.0,0.00010098,2]
[360925897,1747151011644,-500.0,0.00010098,2]
[360925898,1747151011682,-500.0,0.00010098,2]
[360925899,1747151011720,-324.14422858,0.00010098,2]
[360925900,1747151011759,-500.0,0.00010098,2]
[360925901,1747151011799,-500.0,0.00010098,2]
[360925902,1747151011838,-500.0,0.00010098,2]
[360925903,1747151011876,-500.0,0.00010098,2]
[360925904,1747151012205,-500.0,0.00010098,2]
[360925905,1747151012243,-500.0,0.00010098,2]
[360925906,1747151012282,-500.0,0.00010098,2]
[360925907,1747151012320,-455.00721041,0.00010098,2]
[360925908,1747151029909,755.72,9.904e-05,2]
[360925909,1747151039468,159.42,9.904e-05,2]
[360925910,1747151095878,-500.0,0.00010097,2]
[360925911,1747151095941,-500.0,0.00010097,2]
[360925912,1747151096010,-500.0,0.00010097,2]
[360925913,1747151096083,-500.0,0.00010097,2]
[360925914,1747151096151,-500.0,0.00010097,2]
[360925915,1747151096218,-500.0,0.00010097,2]
[360925916,1747151096289,-500.0,0.00010097,2]
[360925917,1747151096357,-500.0,0.00010097,2]
[360925918,1747151096426,-500.0,0.00010097,2]
[360925919,1747151096494,-500.0,0.00010097,2]
[360925920,1747151096563,-500.0,0.00010097,2]
[360925921,1747151096629,-500.0,0.00010097,2]
[360925922,1747151096696,-500.0,0.00010097,2]
[360925923,1747151096766,-500.0,0.00010097,2]
[360925924,1747151096838,-500.0,0.00010097,2]
[360925925,1747151096905,-500.0,0.00010097,2]
[360925926,1747151096967,-353.74122531,0.00010097,2]
[360925927,1747151097028,-500.0,0.00010097,2]
[360925928,1747151097090,-500.0,0.00010097,2]
[360925929,1747151097150,-500.0,0.00010097,2]
[360925930,1747151097219,-500.0,0.00010097,2]
[360925931,1747151097279,-500.0,0.00010097,2]
[360925932,1747151097337,-500.0,0.00010097,2]
[360925933,1747151097396,-500.0,0.00010097,2]
[360925934,1747151097454,-500.0,0.00010097,2]
[360925935,1747151097513,-500.0,0.00010097,2]
[360925936,1747151097571,-500.0,0.00010097,2]
[360925937,1747151097632,-500.0,0.00010097,2]
[360925938,1747151097693,-500.0,0.00010097,2]
[360925939,1747151097751,-500.0,0.00010097,2]
[360925940,1747151097809,-500.0,0.00010097,2]
[360925941,1747151097867,-500.0,0.00010097,2]
[360925942,1747151097923,-146.25877469,0.00010097,2]
[360925943,1747151115309,-1200.0,0.00010096,2]
[360925944,1747151115336,-300.0,0.00010096,2]
[360925945,1747151115400,-353.74122531,0.00010097,2]
[360925946,1747151115468,-425.21131901,0.00010097,2]
[360925947,1747151115531,-500.0,0.00010097,2]
[360925948,1747151115599,-500.0,0.00010097,2]
[360925949,1747151115663,-500.0,0.00010097,2]
[360925950,1747151115725,-500.0,0.00010097,2]
[360925951,1747151115788,-500.0,0.00010097,2]
[360925952,1747151115848,-500.0,0.00010097,2]
[360925953,1747151115912,-511.29200391,0.00010098,2]
[360925954,1747151115971,-511.29200391,0.00010098,2]
[360925955,1747151116029,-511.29200391,0.00010098,2]
[360925956,1747151116086,-511.29200391,0.00010098,2]
[360925957,1747151116112,-2675.87944004,0.000101,3]
[360925976,1747151237528,-298.89066636,0.0001,3]
[360925987,1747151240293,-237.21273833,0.0001,3]
[360925988,1747151243348,-165.34490732,0.0001,3]
[360925991,1747151246843,-152.47781258,0.0001,3]
[360925992,1747151248621,-180.50489077,0.0001,3]
[360925993,1747151250034,-165.56898464,0.0001,3]
[360925994,1747151250062,-5.74023253,0.000101,3]
[360925995,1747151251532,-197.82568275,0.000101,3]
[360925997,1747151254563,-273.58415219,0.000101,3]
[360925998,1747151256635,-300.0,0.000101,3]
[360925999,1747151260065,-1622.84993253,0.000101,3]
[360926000,1747151278935,-200.0,0.0001,3]
[360926001,1747151278962,-3400.0,0.000102,3]
[360926002,1747151288467,-500.0,0.000101,3]
[360926003,1747151293767,-180.2516955,9.933e-05,2]
[360926004,1747151295603,-819.7483045,9.933e-05,2]
[360926005,1747151301466,-200.0,0.000102,3]
[360926006,1747151301491,-800.0,0.000102,3]
[360926014,1747151309131,-270.0,0.00010299,2]
[360926015,1747151309155,-4800.0,0.000103,3]
[360926016,1747151309181,-830.0,0.000103,3]
[360926017,1747151320392,-500.0,0.00010299,2]
[360926018,1747151320465,-500.0,0.00010299,2]
[360926019,1747151320527,-500.0,0.00010299,2]
[360926020,1747151320593,-500.0,0.00010299,2]
[360926021,1747151320657,-500.0,0.00010299,2]
[360926022,1747151320727,-500.0,0.00010299,2]
[360926023,1747151320791,-423.40229574,0.00010299,2]
[360926024,1747151320854,-500.0,0.00010299,2]
[360926025,1747151320917,-500.0,0.00010299,2]
[360926026,1747151320975,-500.0,0.00010299,2]
[360926027,1747151321037,-500.0,0.00010299,2]
[360926028,1747151321093,-500.0,0.00010299,2]
[360926029,1747151321151,-500.0,0.00010299,2]
[360926030,1747151321215,-500.0,0.00010299,2]
[360926031,1747151321274,-500.0,0.00010299,2]
[360926032,1747151321333,-500.0,0.00010299,2]
[360926033,1747151321391,-500.0,0.00010299,2]
[360926034,1747151321450,-500.0,0.00010299,2]
[360926035,1747151321508,-500.0,0.00010299,2]
[360926036,1747151321571,-500.0,0.00010299,2]
[360926037,1747151321630,-500.0,0.00010299,2]
[360926038,1747151321691,-500.0,0.00010299,2]
[360926039,1747151321749,-500.0,0.00010299,2]
[360926043,1747151341973,-500.0,0.00010299,2]
[360926044,1747151342040,-500.0,0.00010299,2]
[360926045,1747151342104,-500.0,0.00010299,2]
[360926046,1747151342164,-500.0,0.00010299,2]
[360926047,1747151342226,-500.0,0.00010299,2]
[360926048,1747151342286,-500.0,0.00010299,2]
[360926049,1747151342349,-500.0,0.00010299,2]
[360926050,1747151342408,-500.0,0.00010299,2]
[360926051,1747151342464,-500.0,0.00010299,2]
[360926052,1747151342522,-500.0,0.00010299,2]
[360926053,1747151342579,-194.94048465,0.00010299,2]
[360926054,1747151342633,-500.0,0.00010299,2]
[360926055,1747151342690,-500.0,0.00010299,2]
[360926056,1747151342744,-500.0,0.00010299,2]
[360926057,1747151342809,-500.0,0.00010299,2]
[360926058,1747151342863,-500.0,0.00010299,2]
[360926059,1747151342922,-500.0,0.00010299,2]
[360926060,1747151342976,-500.0,0.00010299,2]
[360926061,1747151343037,-500.0,0.00010299,2]
[360926062,1747151343107,-500.0,0.00010299,2]
[360926063,1747151343165,-500.0,0.00010299,2]
[360926064,1747151343225,-500.0,0.00010299,2]
[360926065,1747151343284,-500.0,0.00010299,2]
[360926180,1747151371713,-566.50270857,0.00010299,2]
[360926181,1747151371782,-566.50270857,0.00010299,2]
[360926182,1747151371848,-566.50270857,0.00010299,2]
[360926183,1747151371909,-566.50270857,0.00010299,2]
[360926184,1747151371968,-566.50270857,0.00010299,2]
[360926185,1747151372031,-566.50270857,0.00010299,2]
[360926186,1747151372091,-566.50270857,0.00010299,2]
[360926187,1747151372152,-566.50270857,0.00010299,2]
[360926188,1747151372213,-566.50270857,0.00010299,2]
[360926189,1747151372277,-566.50270857,0.00010299,2]
[360926190,1747151372339,-566.50270857,0.00010299,2]
[360926191,1747151372399,-566.50270857,0.00010299,2]
[360926192,1747151372457,-566.50270857,0.00010299,2]
[360926193,1747151372518,-566.50270857,0.00010299,2]
[360926194,1747151372580,-566.50270857,0.00010299,2]
[360926195,1747151372640,-566.50270857,0.00010299,2]
[360926196,1747151372702,-566.50270857,0.00010299,2]
[360926197,1747151372760,-566.50270857,0.00010299,2]
[360926198,1747151372823,-566.50270857,0.00010299,2]
[360926199,1747151372909,-566.50270857,0.00010299,2]
[360926200,1747151372975,-566.50270857,0.00010299,2]
[360926201,1747151373034,-566.50270857,0.00010299,2]
[360926202,1747151373096,-566.50270857,0.00010299,2]
[360926203,1747151373154,-566.50270857,0.00010299,2]
[360926204,1747151373213,-566.50270857,0.00010299,2]
[360926205,1747151373274,-566.50270857,0.00010299,2]
[360926206,1747151373334,-566.50270857,0.00010299,2]
[360926207,1747151373394,-566.50270857,0.00010299,2]
[360926208,1747151373460,-566.50270857,0.00010299,2]
[360926209,1747151373522,-566.50270857,0.00010299,2]
[360926210,1747151373587,-566.50270857,0.00010299,2]
[360926211,1747151373649,-566.50270857,0.00010299,2]
[360926212,1747151373707,-566.50270857,0.00010299,2]
[360926213,1747151373765,-566.50270857,0.00010299,2]
[360926217,1747151392291,-500.0,0.00010299,2]
[360926218,1747151392356,-500.0,0.00010299,2]
[360926219,1747151392422,-500.0,0.00010299,2]
[360926220,1747151392488,-500.0,0.00010299,2]
[360926221,1747151392554,-500.0,0.00010299,2]
[360926222,1747151392620,-500.0,0.00010299,2]
[360926223,1747151392684,-500.0,0.00010299,2]
[360926224,1747151392744,-500.0,0.00010299,2]
[360926225,1747151392806,-500.0,0.00010299,2]
[360926226,1747151392866,-500.0,0.00010299,2]
[360926227,1747151392927,-500.0,0.00010299,2]
[360926228,1747151392986,-500.0,0.00010299,2]
[360926230,1747151393048,-500.0,0.00010299,2]
[360926231,1747151393117,-455.22901644,0.00010299,2]
[360926232,1747151393183,-500.0,0.00010299,2]
[360926233,1747151393246,-500.0,0.00010299,2]
[360926234,1747151393305,-500.0,0.00010299,2]
[360926235,1747151393365,-500.0,0.00010299,2]
[360926236,1747151393427,-500.0,0.00010299,2]
[360926237,1747151393489,-500.0,0.00010299,2]
[360926260,1747151415806,-270.0,0.000103,3]
[360926262,1747151415834,-1200.0,0.00010399,2]
[360926265,1747151415865,-6000.0,0.000104,3]
[360926267,1747151415891,-1400.0,0.000104,3]
[360926269,1747151415919,-865.97,0.00010473,2]
[360926271,1747151415946,-1200.0,0.000105,3]
[360926273,1747151415973,-64.03,0.000105,3]
[360926298,1747151430258,-135.97,0.000105,3]
[360926299,1747151430285,-1200.0,0.000106,3]
[360926300,1747151430312,-200.0,0.000106,3]
[360926301,1747151430337,-1200.0,0.000107,3]
[360926302,1747151430362,-200.0,0.000107,3]
[360926303,1747151430389,-1064.03,0.000108,3]
[360926310,1747151432490,-135.97,0.000108,3]
[360926312,1747151432500,-200.0,0.000108,3]
[360926314,1747151432509,-150.0,0.00010857,2]
[360926315,1747151432519,-171.20009727,0.00010858,2]
[360926316,1747151432529,-239.70990313,0.00010858,2]
[360926317,1747151432614,-60.29009687,0.00010858,2]
[360926318,1747151432624,-1000.0,0.00010858,2]
[360926319,1747151432634,-9950.000001,0.00010859,4]
[360926320,1747151432644,-523.5318818,0.00010896,3]
[360926321,1747151432657,-2620.4681182,0.00010896,3]
[360926322,1747151432666,-1552.55383035,0.000109,2]
[360926323,1747151432676,-1881.6206278,0.000109,2]
[360926324,1747151432686,-500.0,0.000109,2]
[360926325,1747151432696,-1514.0,0.000109,3]
[360926326,1747151432706,-1111.0,0.000109,3]
[360926327,1747151432716,-2111.5790837,0.000109,2]
[360926328,1747151432725,-151.62951033,0.000109,2]
[360926329,1747151432735,-156.32725155,0.00010944,2]
[360926330,1747151432747,-1283.96769315,0.00010944,2]
[360926331,1747151432756,-126.09290957,0.00010948,2]
[360926332,1747151432831,-37.90709043,0.00010948,2]
[360926333,1747151432842,-164.0,0.00010948,2]
[360926334,1747151432851,-164.0,0.00010948,2]
[360926335,1747151432861,-164.0,0.00010948,2]
[360926338,1747151432871,-207.4,0.00010951,2]
[360926340,1747151432881,-668.65185757,0.00010951,2]
[360926342,1747151432890,-287.61899177,0.00010951,2]
[360926344,1747151432900,-151.55295619,0.00010951,2]
[360926346,1747151432910,-151.0,0.00010951,2]
[360926348,1747151432919,-1000.0,0.00010957,2]
[360926350,1747151432929,-400.0,0.00010958,2]
[360926352,1747151432938,-400.0,0.00010958,2]
[360926354,1747151432948,-400.0,0.00010958,2]
[360926356,1747151432957,-400.0,0.00010958,2]
[360926358,1747151432967,-400.0,0.00010958,2]
[360926360,1747151432976,-400.0,0.00010958,2]
[360926362,1747151432986,-400.0,0.00010958,2]
[360926364,1747151432996,-400.0,0.00010958,2]
[360926366,1747151433006,-400.0,0.00010958,2]
[360926368,1747151433015,-404.5,0.00010958,2]
[360926369,1747151433025,-22.71690262,0.00010958,2]
[360926404,1747151438441,-1233.37309738,0.00010958,2]
[360926405,1747151438451,-400.0,0.00010958,2]
[360926406,1747151438461,-400.0,0.00010958,2]
[360926407,1747151438471,-400.0,0.00010958,2]
[360926408,1747151438481,-400.0,0.00010958,2]
[360926409,1747151438491,-400.0,0.00010958,2]
[360926410,1747151438500,-794.39,0.00010958,2]
[360926411,1747151438510,-400.0,0.00010958,2]
[360926412,1747151438519,-1520.12,0.00010958,2]
[360926413,1747151438528,-400.0,0.00010958,2]
[360926414,1747151438538,-400.0,0.00010958,2]
[360926415,1747151438548,-400.0,0.00010958,2]
[360926416,1747151438557,-275.21666473,0.00010958,2]
[360926417,1747151438574,-124.78333527,0.00010958,2]
[360926418,1747151438584,-400.0,0.00010958,2]
[360926419,1747151438593,-400.0,0.00010958,2]
[360926420,1747151438605,-400.0,0.00010958,2]
[360926421,1747151438616,-404.76007591,0.00010958,2]
[360926422,1747151438627,-539.61,0.00010958,2]
[360926423,1747151438636,-400.0,0.00010958,2]
[360926424,1747151438646,-400.0,0.00010958,2]
[360926425,1747151438656,-400.0,0.00010958,2]
[360926426,1747151438665,-240.27898492,0.00010958,2]
[360926427,1747151438675,-400.0,0.00010958,2]
[360926428,1747151438685,-582.7,0.00010958,2]
[360926429,1747151438694,-248.52135982,0.00010958,2]
[360926430,1747151438718,-151.47864018,0.00010958,2]
[360926431,1747151438728,-400.0,0.00010958,2]
[360926432,1747151438738,-400.0,0.00010958,2]
[360926433,1747151438749,-400.0,0.00010958,2]
[360926434,1747151438759,-400.0,0.00010958,2]
[360926435,1747151438769,-400.0,0.00010958,2]
[360926436,1747151438779,-134.92503982,0.00010958,2]
[360926444,1747151439954,-265.07496018,0.00010958,2]
[360926445,1747151439964,-119.78282178,0.00010958,2]
[360926446,1747151439975,-258.56900001,0.00010958,2]
[360926447,1747151439987,-21.64817821,0.00010958,2]
[360926448,1747151439996,-400.0,0.00010958,2]
[360926449,1747151440007,-400.0,0.00010958,2]
[360926450,1747151440016,-241.2665189,0.00010958,2]
[360926451,1747151440026,-400.0,0.00010958,2]
[360926452,1747151440036,-842.58,0.00010958,2]
[360926453,1747151440047,-727.05,0.00010958,2]
[360926454,1747151440057,-770.11,0.00010958,2]
[360926455,1747151440067,-250.1604127,0.00010958,2]
[360926456,1747151440078,-400.0,0.00010958,2]
[360926457,1747151440088,-400.0,0.00010958,2]
[360926458,1747151440097,-400.0,0.00010958,2]
[360926459,1747151440107,-400.0,0.00010958,2]
[360926460,1747151440118,-400.0,0.00010958,2]
[360926461,1747151440130,-400.0,0.00010958,2]
[360926462,1747151440139,-280.28188847,0.00010958,2]
[360926463,1747151440149,-400.0,0.00010958,2]
[360926464,1747151440159,-400.0,0.00010958,2]
[360926465,1747151440169,-414.94628628,0.00010958,2]
[360926466,1747151440179,-400.0,0.00010958,2]
[360926467,1747151440189,-505.38,0.00010958,2]
[360926468,1747151440199,-400.0,0.00010958,2]
[360926469,1747151440209,-608.69,0.00010958,2]
[360926470,1747151440219,-530.15,0.00010958,2]
[360926471,1747151440229,-671.811573,0.00010958,2]
[360926472,1747151440238,-400.0,0.00010958,2]
[360926473,1747151440247,-400.0,0.00010958,2]
[360926474,1747151440257,-400.0,0.00010958,2]
[360926475,1747151440267,-400.0,0.00010958,2]
[360926476,1747151440277,-895.49,0.00010958,2]
[360926477,1747151440287,-400.0,0.00010958,2]
[360926478,1747151440297,-11372.973107,0.00010958,2]
[360926479,1747151440307,-452.397441,0.00010958,2]
[360926480,1747151440316,-400.0,0.00010958,2]
[360926481,1747151440326,-956.57,0.00010958,2]
[360926482,1747151440335,-400.0,0.00010958,2]
[360926483,1747151440344,-235.44853611,0.00010958,2]
[360926484,1747151440354,-451.16,0.00010958,2]
[360926485,1747151440364,-400.0,0.00010958,2]
[360926486,1747151440374,-171.88605833,0.00010958,2]
[360926487,1747151440533,-0.00573529,0.00010958,2]
[360926488,1747151440585,-228.10820638,0.00010958,2]
[360926489,1747151440594,-400.0,0.00010958,2]
[360926490,1747151440605,-355.543243,0.00010958,2]
[360926491,1747151440616,-400.0,0.00010958,2]
[360926492,1747151440626,-400.0,0.00010958,2]
[360926493,1747151440636,-400.0,0.00010958,2]
[360926494,1747151440646,-400.0,0.00010958,2]
[360926495,1747151440656,-400.0,0.00010958,2]
[360926496,1747151440665,-400.0,0.00010958,2]
[360926497,1747151440675,-150.0,0.00010958,2]
[360926498,1747151440688,-460.25380573,0.00010958,2]
[360926499,1747151440699,-400.0,0.00010958,2]
[360926500,1747151440708,-400.0,0.00010958,2]
[360926501,1747151440718,-509.32,0.00010958,2]
[360926502,1747151441035,-400.0,0.00010958,2]
[360926503,1747151441044,-713.61,0.00010958,2]
[360926504,1747151441054,-400.0,0.00010958,2]
[360926505,1747151441063,-400.0,0.00010958,2]
[360926506,1747151441073,-400.0,0.00010958,2]
[360926507,1747151441083,-400.0,0.00010958,2]
[360926508,1747151441092,-417.06,0.00010958,2]
[360926509,1747151441101,-722.52,0.00010958,2]
[360926510,1747151441111,-400.0,0.00010958,2]
[360926511,1747151441120,-432.48,0.00010958,2]
[360926512,1747151441130,-285.06159729,0.00010958,2]
[360926513,1747151441140,-1113.32,0.00010958,2]
[360926514,1747151441149,-541.83,0.00010958,2]
[360926515,1747151441158,-400.0,0.00010958,2]
[360926516,1747151441168,-802.4,0.00010958,2]
[360926517,1747151441177,-400.0,0.00010958,2]
[360926518,1747151441187,-626.49,0.00010958,2]
[360926519,1747151441197,-400.0,0.00010958,2]
[360926520,1747151441206,-1604.09,0.00010958,2]
[360926521,1747151441215,-1974.94,0.00010958,2]
[360926522,1747151441225,-975.16,0.00010958,2]
[360926523,1747151441235,-500.0,0.00010958,2]
[360926524,1747151441244,-400.0,0.00010958,2]
[360926525,1747151441254,-400.0,0.00010958,2]
[360926526,1747151441264,-875.35,0.00010958,2]
[360926527,1747151441274,-400.0,0.00010958,2]
[360926528,1747151441284,-496.26035296,0.00010958,2]
[360926529,1747151441294,-413.0,0.00010958,2]
[360926530,1747151441303,-400.0,0.00010958,2]
[360926531,1747151441313,-400.0,0.00010958,2]
[360926532,1747151441322,-1703.95,0.00010958,2]
[360926533,1747151441332,-1341.74,0.00010958,2]
[360926534,1747151441341,-400.0,0.00010958,2]
[360926535,1747151441350,-400.0,0.00010958,2]
[360926536,1747151441360,-400.0,0.00010958,2]
[360926537,1747151441369,-400.0,0.00010958,2]
[360926538,1747151441380,-512.64,0.00010958,2]
[360926539,1747151441390,-400.0,0.00010958,2]
[360926540,1747151441411,-1509.28,0.00010958,2]
[360926541,1747151441421,-400.0,0.00010958,2]
[360926542,1747151441431,-616.31,0.00010958,2]
[360926543,1747151441441,-400.0,0.00010958,2]
[360926544,1747151441451,-589.9,0.00010958,2]
[360926545,1747151441461,-400.0,0.00010958,2]
[360926546,1747151441471,-400.0,0.00010958,2]
[360926547,1747151441481,-400.0,0.00010958,2]
[360926548,1747151441491,-400.0,0.00010958,2]
[360926549,1747151441502,-400.0,0.00010958,2]
[360926550,1747151441512,-400.0,0.00010958,2]
[360926551,1747151441522,-400.0,0.00010958,2]
[360926552,1747151441532,-521.84,0.00010958,2]
[360926553,1747151441541,-570.17,0.00010958,2]
[360926554,1747151441550,-500.0,0.00010958,2]
[360926555,1747151441559,-400.0,0.00010958,2]
[360926556,1747151441569,-773.6,0.00010958,2]
[360926557,1747151441577,-400.0,0.00010958,2]
[360926558,1747151441587,-780.94,0.00010958,2]
[360926559,1747151441596,-1593.77,0.00010958,2]
[360926560,1747151441609,-400.0,0.00010958,2]
[360926561,1747151441619,-400.0,0.00010958,2]
[360926562,1747151441628,-400.0,0.00010958,2]
[360926563,1747151441638,-400.0,0.00010958,2]
[360926564,1747151441647,-400.0,0.00010958,2]
[360926565,1747151441658,-400.0,0.00010958,2]
[360926566,1747151441668,-400.0,0.00010958,2]
[360926567,1747151441678,-400.0,0.00010958,2]
[360926568,1747151441688,-400.0,0.00010958,2]
[360926569,1747151441699,-400.0,0.00010958,2]
[360926570,1747151441708,-400.0,0.00010958,2]
[360926571,1747151441718,-400.0,0.00010958,2]
[360926572,1747151441728,-400.0,0.00010958,2]
[360926573,1747151441738,-400.0,0.00010958,2]
[360926574,1747151441748,-400.0,0.00010958,2]
[360926575,1747151441757,-248.80061005,0.00010958,2]
[360926576,1747151441770,-400.0,0.00010958,2]
[360926577,1747151441779,-1462.07,0.00010958,2]
[360926578,1747151441789,-400.0,0.00010958,2]
[360926579,1747151441799,-400.0,0.00010958,2]
[360926580,1747151441809,-505.4,0.00010958,2]
[360926581,1747151441819,-534.21,0.00010958,2]
[360926582,1747151441828,-400.0,0.00010958,2]
[360926583,1747151441840,-400.0,0.00010958,2]
[360926584,1747151441850,-400.0,0.00010958,2]
[360926585,1747151441859,-629.15,0.00010958,2]
[360926586,1747151441869,-400.0,0.00010958,2]
[360926587,1747151441878,-861.5,0.00010958,2]
[360926588,1747151441891,-400.0,0.00010958,2]
[360926589,1747151441901,-400.0,0.00010958,2]
[360926590,1747151441911,-400.0,0.00010958,2]
[360926591,1747151441921,-791.29,0.00010958,2]
[360926592,1747151441930,-400.0,0.00010958,2]
[360926593,1747151441940,-400.0,0.00010958,2]
[360926594,1747151441949,-400.0,0.00010958,2]
[360926595,1747151441958,-807.31,0.00010958,2]
[360926596,1747151441968,-691.75,0.00010958,2]
[360926597,1747151441978,-400.0,0.00010958,2]
[360926598,1747151441987,-400.0,0.00010958,2]
[360926599,1747151441996,-400.0,0.00010958,2]
[360926600,1747151442006,-446.1,0.00010958,2]
[360926601,1747151442015,-716.0,0.00010958,2]
[360926602,1747151442025,-515.26,0.00010958,2]
[360926603,1747151442034,-405.08,0.00010958,2]
[360926604,1747151442043,-400.0,0.00010958,2]
[360926605,1747151442052,-642.99,0.00010958,2]
[360926606,1747151442062,-400.0,0.00010958,2]
[360926607,1747151442071,-723.77,0.00010958,2]
[360926608,1747151442080,-467.21,0.00010958,2]
[360926609,1747151442089,-434.23,0.00010958,2]
[360926610,1747151442100,-623.76,0.00010958,2]
[360926611,1747151442110,-400.0,0.00010958,2]
[360926612,1747151442119,-400.0,0.00010958,2]
[360926613,1747151442131,-481.78,0.00010958,2]
[360926614,1747151442140,-400.0,0.00010958,2]
[360926615,1747151442149,-400.0,0.00010958,2]
[360926616,1747151442158,-566.72,0.00010958,2]
[360926617,1747151442168,-400.0,0.00010958,2]
[360926618,1747151442177,-400.0,0.00010958,2]
[360926619,1747151442186,-400.0,0.00010958,2]
[360926620,1747151442195,-400.0,0.00010958,2]
[360926621,1747151442204,-400.0,0.00010958,2]
[360926622,1747151442214,-400.0,0.00010958,2]
[360926623,1747151442228,-400.0,0.00010958,2]
[360926624,1747151442237,-400.0,0.00010958,2]
[360926626,1747151442247,-400.0,0.00010958,2]
[360926627,1747151442257,-400.0,0.00010958,2]
[360926628,1747151442266,-1114.81,0.00010958,2]
[360926630,1747151442276,-567.05,0.00010958,2]
[360926631,1747151442285,-622.61,0.00010958,2]
[360926632,1747151442295,-594.39,0.00010958,2]
[360926634,1747151442304,-400.0,0.00010958,2]
[360926636,1747151442313,-400.0,0.00010958,2]
[360926638,1747151442322,-400.0,0.00010958,2]
[360926639,1747151442332,-438.98119258,0.00010958,2]
[360926641,1747151442341,-400.0,0.00010958,2]
[360926642,1747151442350,-400.0,0.00010958,2]
[360926644,1747151442360,-3483.34,0.00010958,2]
[360926646,1747151442369,-400.0,0.00010958,2]
[360926648,1747151442378,-400.0,0.00010958,2]
[360926650,1747151442388,-400.0,0.00010958,2]
[360926652,1747151442398,-400.0,0.00010958,2]
[360926653,1747151442408,-414.33,0.00010958,2]
[360926654,1747151442417,-400.0,0.00010958,2]
[360926655,1747151442428,-400.0,0.00010958,2]
[360926656,1747151442438,-2603.35,0.00010958,2]
[360926657,1747151442448,-428.65,0.00010958,2]
[360926658,1747151442457,-400.0,0.00010958,2]
[360926659,1747151442467,-478.97979329,0.00010958,2]
[360926660,1747151442477,-701.65,0.00010958,2]
[360926661,1747151442486,-400.0,0.00010958,2]
[360926662,1747151442496,-848.58,0.00010958,2]
[360926663,1747151442506,-400.0,0.00010958,2]
[360926664,1747151442516,-481.43,0.00010958,2]
[360926665,1747151442526,-2999.8,0.00010958,2]
[360926666,1747151442535,-500.0,0.00010958,2]
[360926667,1747151442545,-500.0,0.00010958,2]
[360926668,1747151442555,-400.0,0.00010958,2]
[360926669,1747151442565,-400.0,0.00010958,2]
[360926670,1747151442575,-2646.58,0.00010958,2]
[360926671,1747151442584,-2024.92,0.00010958,2]
[360926672,1747151442594,-400.0,0.00010958,2]
[360926673,1747151442607,-469.42472891,0.00010958,2]
[360926674,1747151442617,-400.0,0.00010958,2]
[360926675,1747151442627,-832.75,0.00010958,2]
[360926676,1747151442638,-400.0,0.00010958,2]